Cogmind - Beta 15 @@@ ROGUE MODE // 2025.09.03 @ 22:42:45 Player: celerysam Result: Destroyed by 3B-TNK(j) with Overtuned Pulse Rifle Performance ------------- Evolutions (3) 1500 Regions Visited (10) 2000 Robots Destroyed (41) 205 Value Destroyed (1348) 1348 Prototype IDs (24) 480 Alien Tech Used (0) 0 Bonus (1204) 1204 TOTAL SCORE: 6737 Bonus ------- High Alert Combat Kills 6 Follower Combat Kills 198 Entered Garrisons 200 Used RIF Installer 500 Aligned with FarCom 300 Cogmind --------- Core Integrity 0/700 Matter 253/300 Energy 75/100 System Corruption 8% Temperature Cool (12) Movement Rolling (100) Location -7/Recycling Parts ------- > --- POWER (2) -------- (None) > --- PROPULSION (4) --- Armored Huge Wheel > --- UTILITY (5) ------ Scrap Engine Advanced Targeting Computer Trap Reconfigurator > --- WEAPON (2) ------- Field Lobotomy Kit > --- INVENTORY (5) ---- Improved Heat Sink Cooling System Peak State ------------ > --- POWER ------------ (None) > --- PROPULSION ------- Armored Huge Wheel > --- UTILITY ---------- Scrap Engine Advanced Targeting Computer Trap Reconfigurator > --- WEAPON ----------- Field Lobotomy Kit > --- INVENTORY -------- Improved Heat Sink Cooling System [Rating: 48] Favorites ----------- Power Ion Engine Engine Ion Engine Power Core Light Nuclear Core Propulsion Wheel Treads Light Treads Leg Aluminum Leg Wheel Wheel Hover Unit Improved Hover Unit Flight Unit VTOL Module Utility High-capacity Storage Unit Device Improved Heat Sink Storage High-capacity Storage Unit Processor Advanced Targeting Computer Hackware Hacking Suite Protection Propulsion Shielding Weapon Particle Gun Energy Gun Particle Gun Ballistic Gun Assault Rifle Launcher Grenade Launcher Special Weapon Plasma Cutter Slashing Weapon Longsword +1 Build | -11 -10 -9 -9 -9 -8 -8 -7 -7 -7 -7 ------- Run | Yrd Mat Mat Min Exi Min Mat Fac Sto Gar Rec Slots Evolved 6 | . . 2 . . . 2 2 . . . Power 1 | . . . . . . . 1 . . . Propulsion 2 | . . 1 . . . 1 . . . . Utility 3 | . . 1 . . . 1 1 . . . Weapon . | . . . . . . . . . . . Parts Attached 57 | 6 9 7 2 1 3 15 1 . 11 2 Power 9 | 1 1 1 1 . . 3 . . 2 . Engine 5 | 1 1 . 1 . . 2 . . . . Core 4 | . . 1 . . . 1 . . 2 . Reactor . | . . . . . . . . . . . Propulsion 22 | 2 3 3 1 . 2 5 . . 5 1 Treads 2 | . . 1 . . . 1 . . . . Leg 2 | 2 . . . . . . . . . . Wheel 9 | . 3 2 1 . 2 . . . . 1 Hover 2 | . . . . . . 2 . . . . Flight 7 | . . . . . . 2 . . 5 . Utility 13 | 1 3 . . 1 . 4 1 . 2 1 Device 8 | . 2 . . 1 . 4 . . . 1 Storage 2 | 1 1 . . . . . . . . . Processor 1 | . . . . . . . . . 1 . Hackware 1 | . . . . . . . 1 . . . Protection 1 | . . . . . . . . . 1 . Artifact . | . . . . . . . . . . . Weapon 13 | 2 2 3 . . 1 3 . . 2 . Energy Gun 4 | . 2 1 . . . 1 . . . . Energy Cannon . | . . . . . . . . . . . Ballistic Gun 4 | 2 . 1 . . . . . . 1 . Ballistic Cannon . | . . . . . . . . . . . Launcher 1 | . . 1 . . . . . . . . Special Weapon 3 | . . . . . . 2 . . 1 . Impact Weapon . | . . . . . . . . . . . Slashing Weapon 1 | . . . . . 1 . . . . . Piercing Weapon . | . . . . . . . . . . . Special Melee Weapon . | . . . . . . . . . . . Unidentified Prototypes 1 | . . . . . . . . . . 1 Parts Lost 42 | . 5 5 5 . . 8 . . 19 . Power 7 | . 1 1 1 . . 1 . . 3 . Propulsion 19 | . 2 3 2 . . 3 . . 9 . Utility 8 | . . . 1 . . 2 . . 5 . Weapon 8 | . 2 1 1 . . 2 . . 2 . Highest Loss Streak 12 | . 4 5 4 . . 6 . . 12 . To Critical Strikes . | . . . . . . . . . . . Average Backups 12 | 4 8 11 15 17 18 15 4 4 3 3 Power 1 | . 1 1 2 2 2 1 . . . . Propulsion . | 3 3 . . . . . . 1 1 . Utility 6 | . 2 6 9 9 9 9 2 2 1 2 Weapon 2 | . 1 1 2 4 4 2 . . . . Tool/Special . | . . . . . . . . . . . Unused Backups 15 | . 2 . . . . 10 1 . . 2 Power 1 | . . . . . . 1 . . . . Propulsion 2 | . 2 . . . . . . . . . Utility 9 | . . . . . . 6 1 . . 2 Weapon 2 | . . . . . . 2 . . . . Tool/Special 1 | . . . . . . 1 . . . . Average Slot Usage (%) 69 | . 94 81 72 47 63 84 90 92 73 23 Engine 5 | . 12 1 1 11 11 5 7 7 . . Core 3 | . . 8 8 . . 3 . . 4 . Treads 2 | . . 2 8 . . 4 . . . . Wheel 11 | . 17 13 15 11 16 12 . . . 7 Hover 1 | . . . . . . 3 15 15 1 . Flight 3 | . . . . . . 5 15 15 24 . Device 17 | . 12 22 11 14 22 26 30 30 21 7 Storage 8 | . 14 11 11 11 11 6 . . . . Processor 1 | . . . . . . . . . 4 7 Energy Gun 6 | . 18 12 8 . . 8 . . . . Ballistic Gun 3 | . 8 9 7 . . . . . . . Special Weapon 1 | . . . . . . 4 7 7 . . Slashing Weapon 1 | . . . . . 3 3 7 7 6 . Peak Build Rating 48 | 6 11 15 16 13 23 38 42 42 46 48 Average Rating 17 | 3 8 13 13 10 15 25 41 42 34 21 On Entrance 19 | . 6 11 15 10 13 23 38 42 42 14 Naked Turns . | . . . . . . . . . . . Heaviest Build 58 | 12 52 54 51 48 51 58 17 17 17 1 Greatest Support 32 | 20 20 30 22 12 32 32 18 18 26 28 Greatest Overweight (x) 5 | . 5 5 5 3 4 4 . . 2 . Average Overweight (x) 1 | . 1 4 3 3 2 1 . . . . Largest Inventory Capacity 20 | 8 20 20 20 20 20 20 5 5 5 5 Average Capacity 15 | 6 15 20 20 20 20 16 5 5 5 5 Most Carried 20 | 6 12 15 18 20 19 20 5 5 5 5 Average Carried 12 | 4 8 11 16 17 18 15 4 5 4 3 Final Capacity 20 | 8 20 20 20 20 20 5 5 5 5 5 Final Carried 19 | 6 12 15 17 19 19 5 5 5 5 2 Class Distribution -------------------- 68% | Mutant 19% | Scavenger-Mutant 7% | Infiltrator-Mutant 5% | Scavenger-Sprinter Dominant Class ---------------- Mutant | -10/Materials Mutant | -9/Materials Mutant | -9/Mines Mutant | -9/Exiles Mutant | -8/Mines Scavenger-Mutant | -8/Materials Scavenger-Mutant | -7/Factory Scavenger-Mutant | -7/Storage Scavenger-Sprinter | -7/Garrison Mutant | -7/Recycling Resources | -11 -10 -9 -9 -9 -8 -8 -7 -7 -7 -7 ----------- Run | Yrd Mat Mat Min Exi Min Mat Fac Sto Gar Rec Matter Collected 941 | 216 165 100 139 . 40 139 . . 123 19 Remotely . | . . . . . . . . . . . Salvage Created 1159 | . 332 233 73 . 17 401 . . 103 . Parts 83 | . 17 22 9 . 3 23 . . 9 . Haulers Intercepted 2 | . 1 . . . . 1 . . . . Recyclers Shooed 1 | . 1 . . . . . . . . . Parts Field Recycled . | . . . . . . . . . . . Retrieved Matter . | . . . . . . . . . . . Parts Self-Destructed . | . . . . . . . . . . . Prevented . | . . . . . . . . . . . Kills | -11 -10 -9 -9 -9 -8 -8 -7 -7 -7 -7 ------- Run | Yrd Mat Mat Min Exi Min Mat Fac Sto Gar Rec Combat Hostiles Destroyed 32 | . 6 9 6 . . 7 . . 4 . Melee 8 | . . . . . . 4 . . 4 . Guns 15 | . 6 4 3 . . 2 . . . . AOE 9 | . . 5 3 . . 1 . . . . Classes Destroyed 7 | . 3 3 1 . . . . . . . Worker 3 | . . 1 . . 1 1 . . . . Hauler 2 | . 1 . . . . 1 . . . . Watcher 4 | . 1 1 . . . 2 . . . . Swarmer 13 | . . 4 5 . . . . . 4 . Grunt 13 | . 6 2 . . . 5 . . . . Duelist 1 | . . . 1 . . . . . . . Sentry 5 | . . 3 . . . 2 . . . . Best Kill Streak 7 | . 3 4 7 . 1 3 . . 2 . Combat Bots Only 6 | . 3 4 6 . . 3 . . 2 . Max Kills in Single Turn 4 | . 1 4 2 . 1 1 . . 1 . Gunslinging . | . . . . . . . . . . . Exploded 3 | . . 3 2 . . 1 . . . . Melee 1 | . . . . . . 1 . . 1 . Uniques/NPCs Destroyed . | . . . . . . . . . . . Combat | -11 -10 -9 -9 -9 -8 -8 -7 -7 -7 -7 -------- Run | Yrd Mat Mat Min Exi Min Mat Fac Sto Gar Rec Hostile Shots Fired 425 | . 78 48 42 . . 72 13 . 167 5 Missed 141 | . 13 17 13 . . 27 7 . 63 1 Hits 284 | . 65 31 29 . . 45 6 . 104 4 Melee 3 | . . . 3 . . . . . . . Projectile 281 | . 65 31 26 . . 45 6 . 104 4 Critical Strikes 6 | . 1 1 1 . . 1 . . 2 . Damage Taken 3938 | . 853 402 482 . . 701 41 . 1370 89 Core 1267 | . 237 89 88 . . 138 18 . 633 64 Absorbed by Shields 80 | . . . . . . . . . 80 . Redirected to Shielding 51 | . . . . . . . . . 51 . Core Remaining (%) 58 | 100 5 . . . 55 74 . . . . Volleys Fired 103 | . 38 21 12 . . 29 . . 2 1 Largest 2 | . 2 2 2 . . 2 . . 1 1 Hottest 130 | . 115 115 95 . . 130 . . . . Shots Fired 174 | . 73 39 21 . . 38 . . 2 1 Gun 154 | . 73 35 19 . . 27 . . . . Cannon . | . . . . . . . . . . . Launcher 8 | . . 4 2 . . 2 . . . . Special 12 | . . . . . . 9 . . 2 1 Kinetic 56 | . 35 14 7 . . . . . . . Thermal 107 | . 38 21 12 . . 36 . . . . Explosive 8 | . . 4 2 . . 2 . . . . Electromagnetic . | . . . . . . . . . . . Robot Hit Streak 12 | . 12 7 6 . . 5 . . 5 6 Robot Miss Streak 4 | . 4 3 3 . . 3 . . . . Penetration Max . | . . . . . . . . . . . Secondary Targets 1 | . . . 1 . . . . . . . Max Gunslinging Chain 1 | . . . 1 . . . . . . . Shots Hit Robots 116 | . 43 20 13 . 1 25 . . 13 1 Core Hits 59 | . 16 16 7 . 1 16 . . 3 . Critical Kills . | . . . . . . . . . . . Critical Parts Destroyed 1 | . . 1 . . . . . . . . Critical Strikes 5 | . 1 1 . . . 2 . . 1 . Burn 2 | . 1 . . . . 1 . . . . Destroy 1 | . . 1 . . . . . . . . Sever 2 | . . . . . . 1 . . 1 . Melee Attacks 48 | . . . . . 1 14 5 . 28 . Impact . | . . . . . . . . . . . Slashing 48 | . . . . . 1 14 5 . 28 . Piercing . | . . . . . . . . . . . Sneak Attacks 2 | . . . . . 1 1 . . . . Combat Hostiles . | . . . . . . . . . . . Follow-up Attacks . | . . . . . . . . . . . Damage Inflicted 2944 | . 603 603 274 . 79 845 . . 540 . Guns 1291 | . 598 273 162 . . 258 . . . . Cannons . | . . . . . . . . . . . Explosions 604 | . . 330 112 . . 162 . . . . Melee 985 | . . . . . 79 366 . . 540 . Ramming 5 | . 5 . . . . . . . . . Kinetic 449 | . 303 87 59 . . . . . . . Thermal 901 | . 295 186 103 . . 317 . . . . Explosive 604 | . . 330 112 . . 162 . . . . Electromagnetic . | . . . . . . . . . . . Impact . | . . . . . . . . . . . Slashing 985 | . . . . . 79 366 . . 540 . Piercing . | . . . . . . . . . . . Highest Corruption 8 | . . . . . . 1 . . 8 8 Average Corruption 7 | . . . . . . 1 . . 8 8 Corruption Purged . | . . . . . . . . . . . Corruption Blocked . | . . . . . . . . . . . Effects 19 | . . . . . . . . . 8 11 Message Errors 4 | . . . . . . . . . 3 1 Matter Fused 5 | . . . . . . . . . 1 4 Heat Flow Errors 3 | . . . . . . . . . . 3 Energy Discharges 2 | . . . . . . . . . 1 1 Parts Rejected 1 | . . . . . . . . . 1 . Data Loss (minor) 1 | . . . . . . . . . . 1 Data Loss (major) 3 | . . . . . . . . . 2 1 Overload Shots . | . . . . . . . . . . . Overflow Damage 124 | . . 7 . . . 54 . . 63 . Projectiles . | . . . . . . . . . . . Explosions 7 | . . 7 . . . . . . . . Melee 117 | . . . . . . 54 . . 63 . Knockbacks . | . . . . . . . . . . . Impact . | . . . . . . . . . . . Kinetic . | . . . . . . . . . . . Secondary . | . . . . . . . . . . . Self-Inflicted Damage 34 | . 2 15 17 . . . . . . . Shots 2 | . . 1 1 . . . . . . . Rammed 1 | . 1 . . . . . . . . . Targets Rammed 1 | . 1 . . . . . . . . . Kicked . | . . . . . . . . . . . Crushed . | . . . . . . . . . . . Highest Temperature 310 | . 310 38 8 . . 98 . . 4 237 Average Temperature 67 | . 89 6 3 . . 26 . . 4 113 Received Heat Transfer 1386 | . 477 129 102 . . 324 9 . 297 48 Effects 2 | . 2 . . . . . . . . . Interference 2 | . 2 . . . . . . . . . Siege Activations . | . . . . . . . . . . . Martial Activations . | . . . . . . . . . . . Shielding Activations . | . . . . . . . . . . . Robots Disrupted . | . . . . . . . . . . . Combat Hostiles . | . . . . . . . . . . . Robots Corrupted . | . . . . . . . . . . . Combat Hostiles . | . . . . . . . . . . . Parts Fried . | . . . . . . . . . . . Impact Corruptions . | . . . . . . . . . . . Robots Melted . | . . . . . . . . . . . Combat Hostiles . | . . . . . . . . . . . Parts Melted 4 | . 4 . . . . . . . . . Heat Transferred 2431 | . 888 444 259 . . 840 . . . . Parts Sabotaged . | . . . . . . . . . . . Parts Stolen . | . . . . . . . . . . . Parts Stripped . | . . . . . . . . . . . Power Chain Reactions . | . . . . . . . . . . . Alert | -11 -10 -9 -9 -9 -8 -8 -7 -7 -7 -7 ------- Run | Yrd Mat Mat Min Exi Min Mat Fac Sto Gar Rec Maximum Alert Level 2 | . . . . . . . . . 2 . Low Security (%) 95 | 100 100 100 100 . 100 100 100 100 49 100 Level 1 3 | . . . . . . . . . 32 . Level 2 1 | . . . . . . . . . 17 . Level 3 . | . . . . . . . . . . . Level 4 . | . . . . . . . . . . . Level 5 . | . . . . . . . . . . . High Security . | . . . . . . . . . . . Max Security . | . . . . . . . . . . . Peak Influence 446 | . 53 103 102 . 5 50 16 . 446 187 Initial 187 | . . 8 27 . . . 14 . 7 187 Average 49 | . 18 29 46 . . 16 6 . 215 108 Influence Increases 1628 | . 180 276 245 . 5 266 5 12 639 . Destroy 0b10 Robot/C 820 | . 120 180 120 . . 140 . . 260 . Destroy 0b10 Robot/NC 45 | . 10 10 . . 5 20 . . . . Destroy Leader 152 | . 34 42 30 . . 36 . . 10 . Allied During Kill 17 | . . . . . . . . . 17 . Trap Triggered on 0b10 30 | . . . 20 . . . . . 10 . Successful Hack 19 | . . . . . . . . 12 7 . Disable Machine 60 | . 15 30 . . . 15 . . . . Anti-Garrison Action 100 | . . . . . . . . . 100 . Destroy Structure 70 | . 1 14 15 . . 25 5 . 10 . Partial Spotted 30 | . . . . . . 15 . . 15 . Lose Combat Pursuer 285 | . . . 60 . . 15 . . 210 . Influence Decreases 1601 | . 160 225 282 34 5 233 38 . 235 389 Entered New Map 343 | . . 12 44 34 . . 19 . 5 229 Time Decay 830 | . 130 175 188 . 5 153 19 . . 160 Lost Part 378 | . 30 38 50 . . 70 . . 190 . Lost Ally 50 | . . . . . . 10 . . 40 . Squads Dispatched 3 | . 1 . . . . 1 . 1 . . Investigation 1 | . . . . . . . . 1 . . Extermination . | . . . . . . . . . . . Reinforcement 2 | . 1 . . . . 1 . . . . Assault . | . . . . . . . . . . . Garrison . | . . . . . . . . . . . Intercept . | . . . . . . . . . . . Searches Triggered . | . . . . . . . . . . . Construction Impeded 1 | . . . . . . 1 . . . . Haulers Reinforced . | . . . . . . . . . . . Active Scanning Responses . | . . . . . . . . . . . Cargo Convoy Interrupts . | . . . . . . . . . . . Stealth | -11 -10 -9 -9 -9 -8 -8 -7 -7 -7 -7 --------- Run | Yrd Mat Mat Min Exi Min Mat Fac Sto Gar Rec Distress Signals 7 | . 2 4 . . . 1 . . . . Communications Jammed . | . . . . . . . . . . . Distress Signals . | . . . . . . . . . . . Times Spotted 103 | . 12 17 14 . . 16 5 . 37 2 Peak Tracking Total 9 | . 5 5 5 . . 4 5 . 9 4 Tactical Retreats 15 | . 1 3 2 . . 1 1 . 7 . Traps | -11 -10 -9 -9 -9 -8 -8 -7 -7 -7 -7 ------- Run | Yrd Mat Mat Min Exi Min Mat Fac Sto Gar Rec Traps Triggered 4 | . 1 . . . . 1 . . 2 . Indirectly . | . . . . . . . . . . . Trap Hack Attempts . | . . . . . . . . . . . Triggered . | . . . . . . . . . . . Disarmed . | . . . . . . . . . . . Reprogrammed . | . . . . . . . . . . . Reused 3 | . . . 2 . . . . . 1 . Traps Reconfigurated 6 | . . . . . . 1 . . 5 . Traps Extracted . | . . . . . . . . . . . Installed 2 | . . . 2 . . . . . . . Triggered 3 | . . . 2 . . . . . 1 . Most Traps Carried 2 | . . . 2 . . . . . . . Machines | -11 -10 -9 -9 -9 -8 -8 -7 -7 -7 -7 ---------- Run | Yrd Mat Mat Min Exi Min Mat Fac Sto Gar Rec Machines Disabled 6 | . 1 3 . . . 1 . . 1 . Max in Single Turn 1 | . 1 1 . . . 1 . . 1 . Garrison Relay 1 | . . . . . . . . . 1 . Machines Repaired . | . . . . . . . . . . . Machines Dismantled . | . . . . . . . . . . . Machines Sabotaged . | . . . . . . . . . . . Overloaded Fab Kills . | . . . . . . . . . . . Hacking | -11 -10 -9 -9 -9 -8 -8 -7 -7 -7 -7 --------- Run | Yrd Mat Mat Min Exi Min Mat Fac Sto Gar Rec Machines Accessed 10 | . . . . 3 . 1 . 1 2 3 Terminals 3 | . . . . . . 1 . . 2 . Fabricators . | . . . . . . . . . . . Repair Stations . | . . . . . . . . . . . Recycling Units 1 | . . . . . . . . . . 1 Scanalyzers . | . . . . . . . . . . . Garrison Access 1 | . . . . . . . . 1 . . Total Hacks 38 | . . . . 3 . 1 . 4 3 27 Successful 33 | . . . . 3 . 1 . 1 1 27 Failed 5 | . . . . . . . . 3 2 . Catastrophic 4 | . . . . . . . . 2 2 . Database Lockouts . | . . . . . . . . . . . Manual 2 | . . . . 1 . 1 . . . . Terminals 4 | . . . . . . 1 . . 3 . Fabricators . | . . . . . . . . . . . Repair Stations . | . . . . . . . . . . . Recycling Units 1 | . . . . . . . . . . 1 Scanalyzers . | . . . . . . . . . . . Garrison Access 4 | . . . . . . . . 4 . . Terminal Hacks 30 | . . . . 3 . . . . 1 26 Record 26 | . . . . 2 . . . . . 24 Open Door 1 | . . . . . . . . . 1 . Proto ID Catalog 1 | . . . . 1 . . . . . . Release Object 2 | . . . . . . . . . . 2 Fabricator Hacks . | . . . . . . . . . . . Repair Station Hacks . | . . . . . . . . . . . Recycling Unit Hacks 1 | . . . . . . . . . . 1 Report Inventory 1 | . . . . . . . . . . 1 Scanalyzer . | . . . . . . . . . . . Garrison Access Hacks 1 | . . . . . . . . 1 . . Unlock Access 1 | . . . . . . . . 1 . . Unauthorized Hacks 1 | . . . . . . 1 . . . . Terminals 1 | . . . . . . 1 . . . . Assimilate 1 | . . . . . . 1 . . . . Fabricators . | . . . . . . . . . . . Repair Stations . | . . . . . . . . . . . Recycling Units . | . . . . . . . . . . . Scanalyzers . | . . . . . . . . . . . Garrison Access . | . . . . . . . . . . . Data Cores Recovered . | . . . . . . . . . . . Used . | . . . . . . . . . . . Hacking Detections 3 | . . . . . . . . 1 1 1 Full Trace Events 2 | . . . . . . . . 1 1 . Feedback Events . | . . . . . . . . . . . Feedback Blocked . | . . . . . . . . . . . Robot Schematics Acquired . | . . . . . . . . . . . Robots Built . | . . . . . . . . . . . Authchips . | . . . . . . . . . . . Time . | . . . . . . . . . . . Total Robot Build Rating . | . . . . . . . . . . . Part Schematics Acquired . | . . . . . . . . . . . Parts Built . | . . . . . . . . . . . Authchips . | . . . . . . . . . . . Time . | . . . . . . . . . . . Total Part Build Rating . | . . . . . . . . . . . Parts Repaired . | . . . . . . . . . . . Time . | . . . . . . . . . . . Parts Recycled . | . . . . . . . . . . . Recycled Matter . | . . . . . . . . . . . Retrieved Matter . | . . . . . . . . . . . Retrieved Components . | . . . . . . . . . . . Parts Scanalyzed . | . . . . . . . . . . . Part Schematics Acquired . | . . . . . . . . . . . Parts Damaged . | . . . . . . . . . . . Bothacking | -11 -10 -9 -9 -9 -8 -8 -7 -7 -7 -7 ------------ Run | Yrd Mat Mat Min Exi Min Mat Fac Sto Gar Rec Used RIF Installer 1 | . . . . . . . . . 1 . Robots Hacked . | . . . . . . . . . . . Non-combat . | . . . . . . . . . . . Combat . | . . . . . . . . . . . Robot Hacks Applied . | . . . . . . . . . . . Relay Couplers Released 3 | . . . . . . . . . 3 . Machine Destruction 3 | . . . . . . . . . 3 . Fabnet Peak Effective % . | . . . . . . . . . . . Robots Rewired . | . . . . . . . . . . . Allies Hacked . | . . . . . . . . . . . Hacks Repelled . | . . . . . . . . . . . Allies | -11 -10 -9 -9 -9 -8 -8 -7 -7 -7 -7 -------- Run | Yrd Mat Mat Min Exi Min Mat Fac Sto Gar Rec Total Allies 6 | . . . . . . 1 . . 4 1 Largest Group 2 | . . . . . . 1 . . 2 1 Highest-Rated Group 85 | . . . . . . 10 . . 85 33 Highest-Rated Ally 85 | . . . . . . 10 . . 85 33 Total Orders . | . . . . . . . . . . . Ally Attacks 40 | . . . . . . . . . 40 . Total Damage 1787 | . . . . . . . . . 1787 . Kills 9 | . . . . . . . . . 9 . Allies Corrupted 1 | . . . . . . . . . 1 . Allies Melted . | . . . . . . . . . . . Field Lobotomies 3 | . . . . . . . . . 2 1 Intel | -11 -10 -9 -9 -9 -8 -8 -7 -7 -7 -7 ------- Run | Yrd Mat Mat Min Exi Min Mat Fac Sto Gar Rec Active Infowar (turns) 1667 | . 83 440 6 128 349 556 66 8 31 . Structural 570 | . . . . . . 465 66 8 31 . ECM 1566 | . 83 440 6 128 349 457 66 8 29 . Robot Analysis Total . | . . . . . . . . . . . Derelict Logs Recovered . | . . . . . . . . . . . Drone Launches . | . . . . . . . . . . . Drone Recoveries . | . . . . . . . . . . . Exploration | -11 -10 -9 -9 -9 -8 -8 -7 -7 -7 -7 ------------- Run | Yrd Mat Mat Min Exi Min Mat Fac Sto Gar Rec Turns Passed 3294 | 89 344 446 429 408 349 556 66 8 267 332 Spaces Moved 2774 | 71 175 242 284 300 278 421 125 23 532 323 Core 45 | 21 . . . . . . . . 24 . Treads 6 | . . . . . . 6 . . . . Legs 82 | 50 32 . . . . . . . . . Wheels 1810 | . 143 242 284 300 278 240 . . . 323 Hover 6 | . . . . . . 6 . . . . Flight 825 | . . . . . . 169 125 23 508 . Fastest Speed 26 | 50 80 95 115 135 98 34 34 34 26 100 Average Speed 95 | 99 112 148 131 135 122 88 34 34 29 100 Slowest Speed 320 | 120 155 155 155 135 150 320 34 34 150 100 Overloaded Moves . | . . . . . . . . . . . Propulsion Burnouts . | . . . . . . . . . . . Robots Hopped 4 | . . . . . . 1 . . 3 . Potential Cave-ins 2 | . . . . . . . . . 2 . Cave-ins Triggered 1 | . . . . . . . . . 1 . Exploration Rate (%) 38 | 6 46 25 57 61 53 42 5 9 63 58 Regions Visited 10 Branch Regions 5 Pre-discovered Areas . | . . . . . . . . . . . Known Exits Taken 1 | . . . . . . . . 1 . . Unknown Exits Taken 8 | 1 1 1 1 1 1 1 1 . . . Scrap Searched 3 | . . . 2 . 1 . . . . . Spaces Dug 24 | . . . . . . 8 5 . 11 . Terrain Destroyed 69 | . . 13 17 . . 23 5 . 11 . Melee 22 | . . . . . . 6 5 . 11 . Projectile 4 | . . . . . . 4 . . . . AOE 43 | . . 13 17 . . 13 . . . . Terrain Rammed . | . . . . . . . . . . . Walls Destroyed . | . . . . . . . . . . . Machines Disabled . | . . . . . . . . . . . Actions | -11 -10 -9 -9 -9 -8 -8 -7 -7 -7 -7 --------- Run | Yrd Mat Mat Min Exi Min Mat Fac Sto Gar Rec Total 3165 | 86 249 289 318 303 284 532 143 23 606 332 Wait 84 | 4 10 9 10 . . 27 11 . 9 4 Move 2758 | 70 174 241 283 299 277 418 124 23 526 323 Hop 3 | . . . . . . 1 . . 2 . Pick Up 56 | 6 14 9 6 3 3 10 1 . 3 1 Fast Attach 22 | 6 1 . . . . 7 . . 8 . Attach 34 | . 5 6 2 1 3 8 1 . 5 3 Detach 2 | . . . . . . . . . 2 . Swap 12 | . 3 3 1 . . 5 . . . . Drop 20 | . 3 . 2 . . 13 1 . 1 . Fire 103 | . 38 21 12 . . 29 . . 2 1 Melee 48 | . . . . . 1 14 5 . 28 . Ram 1 | . 1 . . . . . . . . . Kick . | . . . . . . . . . . . Crush . | . . . . . . . . . . . Escape Stasis 20 | . . . . . . . . . 20 . Rewire . | . . . . . . . . . . . Trap 2 | . . . 2 . . . . . . . Miscellaneous . | . . . . . . . . . . . Route ------- -11/Scrapyard -10/Materials (discovered 2 exits: *Mat / [*Min]) -9/Materials (discovered 2 exits: [*Min x2]) -9/Mines -9/Exiles -8/Mines -8/Materials -7/Factory -7/Storage -7/Garrison (discovered 3 exits: *Rec x3) -7/Recycling History --------- Turn | Location | Event 8 | -11/Scrapyard | Discovered new exit (range 15) 90 | -11/Scrapyard | Entered Materials 194 | -10/Materials | Core integrity fell below 50% 234 | -10/Materials | Lost 4 parts (1p1n2w) 238 | -10/Materials | Core integrity fell below 20% 289 | -10/Materials | Discovered new exit (range 11) 313 | -10/Materials | Build established: Mutant 429 | -10/Materials | Discovered new exit (range 6) 434 | -10/Materials | Entered another Materials area 434 | -9/Materials | Evolved 2 slots: Propulsion x1, Utility x1 442 | -9/Materials | Discovered new exit (range 15) 520 | -9/Materials | Lost 5 parts (1p3n1w) 866 | -9/Materials | Discovered new exit (range 6) 880 | -9/Materials | Entered Mines 942 | -9/Mines | Found a hidden stash of uninstalled traps 1115 | -9/Mines | Assembled infested the area 1220 | -9/Mines | Met 8R-AWN 1243 | -9/Mines | Lost 4 parts (1p2n1w) 1304 | -9/Mines | Discovered new exit (range 5) 1309 | -9/Mines | Entered Exiles 1343 | -9/Exiles | Welcomed by 8R-AWN 1365 | -9/Exiles | Met EX-HEX 1407 | -9/Exiles | Met EX-BIN 1423 | -9/Exiles | Aligned with FarCom system 1424 | -9/Exiles | Given EX-Vault access code 1458 | -9/Exiles | Opened EX-Vault 1527 | -9/Exiles | Warned to stay clear of 0b10 Research branches 1578 | -9/Exiles | Found Field Lobotomy Kit 1580 | -9/Exiles | Found Trap Reconfigurator 1588 | -9/Exiles | Found Longsword +1 1655 | -9/Exiles | Met EX-DEC 1704 | -9/Exiles | Discovered new exit (range 11) 1717 | -9/Exiles | Stole three prototypes: Trap Reconfigurator, Field Lobotomy Kit, Longsword +1 1717 | -9/Exiles | Entered Mines 1747 | -8/Mines | Discovered new exit (range 15) 2066 | -8/Mines | Entered Materials 2066 | -8/Materials | Evolved 2 slots: Propulsion x1, Utility x1 2295 | -8/Materials | Lost 6 parts (1p2n1u2w) 2612 | -8/Materials | Discovered new exit (range 8) 2622 | -8/Materials | Entered Factory 2622 | -7/Factory | Evolved 2 slots: Power x1, Utility x1 2624 | -7/Factory | FarCom data flow suspended 2659 | -7/Factory | Discovered new exit (range 15) 2688 | -7/Factory | Entered Storage 2696 | -7/Storage | Identified exit to Garrison 2696 | -7/Storage | Entered Garrison 2704 | -7/Garrison | Triggered checkpoint 2704 | -7/Garrison | Garrison Relay disabled 2749 | -7/Garrison | Lost 5 parts (1p3n1w) 2776 | -7/Garrison | Crushed by falling debris 2780 | -7/Garrison | Spotted B-75 Beast 2780 | -7/Garrison | Spotted B-75 Beast 2782 | -7/Garrison | Assimilated B-75 Beast with FLK Orb 2790 | -7/Garrison | Discovered new exit (range 15) 2826 | -7/Garrison | Triggered checkpoint 2830 | -7/Garrison | Triggered checkpoint 2830 | -7/Garrison | Assimilated B-75 Beast with FLK Orb 2848 | -7/Garrison | Triggered checkpoint 2855 | -7/Garrison | Discovered new exit (range 10) 2866 | -7/Garrison | Triggered checkpoint 2908 | -7/Garrison | Triggered checkpoint 2912 | -7/Garrison | Rescued a captive Derelict 2914 | -7/Garrison | Rescued a captive Derelict 2916 | -7/Garrison | Core integrity fell below 50% 2936 | -7/Garrison | Triggered checkpoint 2942 | -7/Garrison | Installed Relay Interface Framework 2951 | -7/Garrison | Core integrity fell below 20% 2958 | -7/Garrison | Discovered new exit (range 12) 2963 | -7/Garrison | Entered Recycling 2981 | -7/Recycling | Lost 12 parts (2p6n3u1w) 3224 | -7/Recycling | Scanned before Scraplab entrance 3252 | -7/Recycling | Discovered new exit (range 2) 3281 | -7/Recycling | Entered Scraplab 3290 | -7/Recycling | Angered Scraplab inhabitants 3291 | -7/Recycling | Found Prototype Device 3292 | -7/Recycling | Identified Scrap Engine 3294 | -7/Recycling | Assimilated EX-8DX(j) with FLK Orb 3295 | -7/Recycling | Destroyed by 3B-TNK(j) with Overtuned Pulse Rifle Last Messages --------------- with tech like this once it's complete! 0b10 may be backed by endless fabrication networks, but the Scrap Engine is like having a personal Fabricator on your back! Now if they can just make this "Fabricator" a little less insane I'm all in. 03267_ System corrupted: Energy discharge (-22). 03283_ I9-710(c) is busy at their terminal. 03283_ Connecting with Scraplab SEP... 03290_ I9-710(c) is busy at their terminal. 03290_ Connecting with Scraplab SEP... >>Release Inventory Accessing inventory controls... Prototype released... URGENT: Link to external system right away! 03291_ Scraplab SEP disabled. 03291_ Acquired Prototype Device. 03292_ Identified Scrap Engine. 03293_ 3B-TNK(j): "Defend the Scraplab!" 03294_ EX-8DX(j) assimilated. Map ----- +----------------------------------------------------+ | | | | | | | | | | | | | | | | | | | | | | | | | | | | | | | | | | | | | | | | | | | | | | | ??????????????????????############???????????????? | | ??????????????????????#"""""""#< #???????????????? | | ??????????????????????# "@ " ## #???????????????? | | ????????????????####### c j #???????????????? | | ???????????????## + #???????????????? | | ???????????????# #####j "#???????????????? | | ???????????????## #???# c ""#???????????????? | | ????????????????# #???#"& "& X ""#???????????????? | | ????????????????# #???#"""""""" #???????????????? | | ?????????????#####################???????????????? | | ?????????????# #???????????????????????????? | | ?????????????# #???????????????????????????? | | ?????????????# #???????????????????????????? | | ?????????????# #???????????????????????????? | | ?????????????####+####???????????????????????????? | | ????????????????# #??????????????????????????????? | | ????????????????# #??????????????????????????????? | | ????????????????# #??????????????????????????????? | | ????????????#####+#####??????????????????????????? | | ????????????# #??????????????????????????? | | ????????????# """ #??????????????????????????? | | ????????????# """ #??????????????????????????? | | ????????????# """ #??????????????????????????? | | ????????????# """ #??????????????????????????? | | ????????????# "Y #??????????????????????????? | | ????????????# """ #??????????????????????????? | | ????????????# #??????????????????????????? | +----------------------------------------------------+ Best States ------------- Heat Dissipation 45 Energy Generation 18 Energy Capacity 250 Matter Stores 300 Matter Capacity 300 Sight Range 16 Terrain Scan Density 10 ECM Strength 1 Additional Mass Support 9 Propulsion Shielding 33 Evasion (%) 64 Targeting Accuracy 8 Recoil Reduction 1 Offensive Hacking 10 Item Schematics ----------------- None Robot Schematics ------------------ None Fabricated ------------ Nothing Repaired ---------- Nothing Alien Tech Used ----------------- None Achievements -------------- None Challenges ------------ None Game ------ Seed CarbideSeismicSlayer Manual? 0 Play Time 01:04:39 Cumulative 277.2 hours Start 2025.09.03 @ 21:35:14 End 2025.09.03 @ 22:42:45 Sessions 1 Manual Loads 0 Difficulty Rogue Special Mode None Game No. 431 Rogue 431 Adventurer 0 Explorer 0 Win Type - Total 1 Types 1/0/0/0/0/0/0/0/0/0 Lore% 64 Gallery% 63 Achievement% 44 Wizard Run 0 Options --------- Layout 1 ASCII 0 Keyboard 0 Movement Mouse Keybinds 0 Fullscreen 2 Font 24/Smallcaps Map View 50x35 Zoom Use 0% Tactical HUD 1 Map Filters NONE Filters NONE Steam X RUN: 6cdda684-3591-40c3-98f1-5af5c05f6386